bitfinex-derivatives/quotes_SOLF0:USTF0_20250207
["timestamp","ask_amount","ask_price","bid_price","bid_amount"]
[1738963055475,38.3634152,190.59,190.48,1.9862]
[1738963055675,38.3634152,190.59,190.53,0.03353876]
[1738963056275,5.2473,190.55,190.53,0.03353876]
[1738963056675,5.2474,190.54,190.53,0.03353876]
[1738963057977,5.249,190.49,190.45,3.1645]
[1738963058175,23.78937025,190.56,190.45,3.1645]
[1738963058373,145.43282184,190.55,190.45,3.1645]
[1738963058578,5.249,190.49,190.45,3.1645]
[1738963058781,145.43282184,190.55,190.45,3.1645]
[1738963058983,0.03927201,190.52,190.48,0.0357815]
[1738963059371,5.249,190.49,190.48,0.0357815]
[1738963060080,0.03927201,190.52,190.48,5.2845815]
[1738963060277,0.03927201,190.52,190.48,0.0357815]
[1738963060580,5.2485,190.5,190.48,0.0357815]
[1738963060781,0.03927201,190.52,190.48,0.0357815]
[1738963061379,5.2488,190.49,190.48,0.0357815]
[1738963061778,23.78937025,190.5,190.42,2.1224]
[1738963061985,23.78937025,190.5,190.42,7.3731]
[1738963062182,23.78937025,190.5,190.42,2.1224]
[1738963062476,23.78937025,190.5,190.4,1.5626]
[1738963062880,0.03706431,190.47,190.43,0.03383682]
[1738963063281,5.2499,190.46,190.43,0.03383682]
[1738963063577,0.03706431,190.47,190.43,0.03383682]
[1738963063784,5.2499,190.46,190.43,0.03383682]
[1738963064184,0.03706431,190.47,190.43,0.03383682]
[1738963064883,5.28646431,190.47,190.44,5.2501]
[1738963065087,0.03706431,190.47,190.43,0.03383682]
[1738963066188,5.2502,190.44,190.43,0.03383682]
[1738963069291,5.2498,190.46,190.43,0.03383682]
[1738963069692,5.2502,190.44,190.43,0.03383682]
[1738963073090,0.03706431,190.47,190.43,5.28423682]
[1738963073287,0.03706431,190.47,190.43,0.03383682]
[1738963075601,5.2502,190.44,190.43,0.03383682]
[1738963076796,0.03706431,190.47,190.43,0.03383682]
[1738963077193,23.82643456,190.47,190.43,0.03383682]
[1738963078095,5.2502,190.44,190.43,0.03383682]
[1738963080400,23.78937025,190.44,190.33,5.2971]
[1738963080602,23.78937025,190.41,190.25,23.78937025]
[1738963080804,23.78937025,190.41,190.29,105.9027]
[1738963081103,5.252,190.38,190.29,105.9027]
[1738963081304,23.78937025,190.41,190.31,5.2535]
[1738963081499,23.78937025,190.41,190.29,105.9027]
[1738963081699,5.2526,190.35,190.34,0.03731992]
[1738963081896,0.03801506,190.38,190.34,0.03731992]
[1738963082400,5.2526,190.35,190.34,0.03731992]
[1738963083005,29.04197025,190.35,190.34,0.03731992]
[1738963083402,29.04197025,190.35,190.29,2.0027]
[1738963083403,5.2537,190.32,190.29,2.0027]
[1738963083598,23.78937025,190.35,190.29,2.0027]
[1738963084304,23.78937025,190.32,190.18,130.24073087]
[1738963084507,145.46732344,190.34,190.3,5.469e-05]
[1738963084709,5.2554,190.26,190.2,5.2565]
[1738963085311,23.78937025,190.29,190.19,3.5159]
[1738963085609,5.2556,190.25,190.2,5.2567]
[1738963085807,5.2556,190.25,190.22,0.04047725]
[1738963086007,0.03587225,190.26,190.22,0.04047725]
[1738963087300,0.03587225,190.26,190.22,5.29667725]
[1738963087505,0.03587225,190.26,190.22,0.04047725]
[1738963087808,145.43282184,190.33,190.22,0.04047725]
[1738963088010,150.68612184,190.33,190.22,0.04047725]
[1738963088216,145.43282184,190.33,190.22,0.04047725]
[1738963088411,5.2537,190.32,190.22,0.04047725]
[1738963088717,145.43282184,190.33,190.22,0.04047725]
[1738963088914,23.78937025,190.32,190.22,0.04047725]
[1738963089213,23.82251447,190.29,190.22,0.04047725]
[1738963091411,5.2546,190.28,190.22,0.04047725]
[1738963092207,5.255,190.27,190.22,0.04047725]
[1738963092413,23.82251447,190.29,190.22,0.04047725]
[1738963092615,23.82251447,190.29,190.22,5.29667725]
[1738963093511,5.2549,190.27,190.23,5.2559]
[1738963096010,5.2549,190.27,190.22,0.04047725]
[1738963096207,0.03314422,190.29,190.22,0.04047725]
[1738963096611,0.03314422,190.29,190.28,5.2546]
[1738963097714,145.43282184,190.33,190.27,0.0340309]
[1738963098018,14.91675325,190.37,190.27,0.0340309]
[1738963098215,14.91675325,190.37,190.26,1.5355]
[1738963098417,20.16905325,190.37,190.33,5.2529]
[1738963098619,23.85324403,190.39,190.27,1.9598]
[1738963099114,0.03559114,190.35,190.31,0.03504472]
[1738963099509,5.2534,190.33,190.31,0.03504472]
[1738963099710,0.03559114,190.35,190.31,0.03504472]
[1738963100819,5.253,190.34,190.31,5.28874472]
[1738963101719,0.03559114,190.35,190.31,0.03504472]
[1738963102019,5.2534,190.33,190.31,0.03504472]
[1738963102923,0.03559114,190.35,190.31,0.03504472]
[1738963103226,5.253,190.34,190.31,5.28874472]
[1738963103420,0.03559114,190.35,190.31,0.03504472]
[1738963103620,0.03559114,190.35,190.32,5.2534]
[1738963104526,0.03559114,190.35,190.32,9.4534]
[1738963104825,5.28829114,190.35,190.32,9.4534]
[1738963105524,0.03559114,190.35,190.32,4.2]
[1738963105721,5.2532,190.33,190.32,4.2]
[1738963106026,0.03559114,190.35,190.32,4.2]
[1738963106926,150.68412184,190.4,190.37,5.2519]
[1738963107226,150.68412184,190.4,190.32,5.8569]
[1738963107227,145.43282184,190.4,190.32,5.8569]
[1738963107427,5.2512,190.41,190.35,5.2524]
[1738963107619,5.2512,190.41,190.33,1.5777]
[1738963107825,23.85324403,190.42,190.33,1.5777]
[1738963108127,0.04046468,190.39,190.35,0.03764253]
[1738963108531,0.04046468,190.39,190.37,5.252]
[1738963110131,5.29216468,190.39,190.36,5.2523]
[1738963110331,145.43282184,190.38,190.32,4.2]
[1738963110535,23.85324403,190.34,190.32,4.2]
[1738963110835,23.85324403,190.34,190.27,1.9598]
[1738963111027,23.85324403,190.31,190.23,1.5959]
[1738963111333,5.2545,190.29,190.26,5.2551]
[1738963111536,5.2885994,190.29,190.26,5.2551]
[1738963111735,0.0340994,190.29,190.25,0.03778878]
[1738963111933,5.2549,190.27,190.25,0.03778878]
[1738963112728,23.85324403,190.28,190.25,0.03778878]
[1738963112928,5.2551,190.26,190.25,0.03778878]
[1738963118341,23.85324403,190.23,190.18,2.0994]
[1738963119042,23.85324403,190.26,190.18,2.0994]
[1738963119242,145.43282184,190.28,190.18,2.0994]
[1738963119438,0.0362701,190.24,190.2,0.03450246]
[1738963119638,5.2920701,190.24,190.2,5.29100246]
[1738963120941,0.0362701,190.24,190.2,0.03450246]
[1738963121141,0.0362701,190.24,190.21,1.6564]
[1738963121742,0.0362701,190.24,190.23,5.256]
[1738963122140,0.0362701,190.24,190.21,1.6564]
[1738963122342,0.0362701,190.24,190.21,6.9129]
[1738963122943,0.0362701,190.24,190.22,5.2562]
[1738963123945,0.0362701,190.24,190.23,5.2559]
[1738963124841,20.17726389,190.3,190.26,5.255]
[1738963125047,14.92316389,190.33,190.22,1.659]
[1738963125346,20.17636389,190.33,190.25,5.2553]
[1738963125539,20.17636389,190.33,190.22,1.659]
[1738963125843,14.92316389,190.33,190.22,1.659]
[1738963126037,145.43282184,190.34,190.26,0.0382378]
[1738963126241,14.92316389,190.39,190.27,14.92316389]
[1738963126643,203.18971668,190.4,190.35,5.2526]
[1738963127346,145.43282184,190.4,190.35,5.2526]
[1738963127546,0.04043663,190.39,190.36,0.03643649]
[1738963128150,5.252,190.38,190.36,0.03643649]
[1738963128446,0.04043663,190.39,190.36,0.03643649]
[1738963128651,5.2521,190.37,190.36,0.03643649]
[1738963129344,29.13565835,190.39,190.36,0.03643649]
[1738963129750,5.29203663,190.39,190.36,0.03643649]
[1738963129953,0.04043663,190.39,190.37,5.252]
[1738963130251,0.04043663,190.39,190.36,0.03643649]
[1738963131150,0.04043663,190.39,190.37,5.2521]
[1738963131352,0.04043663,190.39,190.36,0.03643649]
[1738963132953,0.04043663,190.39,190.36,5.28873649]
[1738963133153,0.04043663,190.39,190.36,0.53643649]
[1738963133453,0.04043663,190.39,190.37,5.252]
[1738963133752,0.04043663,190.39,190.36,0.53643649]
[1738963134155,0.04043663,190.39,190.37,1.9917]
[1738963134757,0.04043663,190.39,190.38,5.2518]
[1738963136555,5.2502,190.44,190.4,5.2513]
[1738963137156,5.2499,190.45,190.4,5.2513]
[1738963137356,5.6458,190.55,190.37,1.9917]
[1738963137357,23.84362172,190.51,190.37,1.9917]
[1738963137557,23.84362172,190.54,190.38,23.84362172]
[1738963137759,0.03406021,190.46,190.42,0.03820487]
[1738963138060,141.78895537,190.57,190.41,23.84362172]
[1738963138456,5.2477,190.53,190.41,23.84362172]
[1738963139155,5.2477,190.53,190.45,0.03661722]
[1738963139654,84.03206053,190.57,190.46,5.2493]
[1738963140159,84.03206053,190.57,190.5,0.03416994]
[1738963140356,5.2485,190.51,190.5,0.03416994]
[1738963144062,145.43282184,190.56,190.5,0.03416994]
[1738963144259,145.43282184,190.56,190.51,5.2482]
[1738963144568,145.43282184,190.56,190.5,0.03416994]
[1738963144862,5.2474,190.55,190.51,5.2482]
[1738963145657,145.43282184,190.56,190.5,0.03416994]
[1738963146261,5.2482,190.51,190.5,0.03416994]
[1738963148463,29.09182172,190.51,190.5,0.03416994]
[1738963148665,14.8903031,190.51,190.4,1.603]
[1738963148855,14.8903031,190.45,190.39,1.5172]
[1738963149062,5.2506,190.43,190.39,6.7687]
[1738963149865,5.2507,190.42,190.39,1.5524007]
[1738963150066,0.04011714,190.43,190.39,1.5524007]
[1738963150261,5.29051714,190.43,190.39,1.5524007]
[1738963152059,5.29051714,190.43,190.39,6.8039007]
[1738963152865,5.29051714,190.43,190.39,1.5524007]
[1738963153266,5.2513,190.4,190.39,0.0352007]
[1738963156268,5.253,190.34,190.31,5.2537]
[1738963156464,23.83328248,190.38,190.29,3.5546]
[1738963156660,23.83328248,190.35,190.29,1.8783]
[1738963157066,5.2537,190.32,190.29,1.8783]
[1738963157262,5.2537,190.32,190.27,5.2546]
[1738963157471,0.03753158,190.32,190.29,0.03881466]
[1738963157674,5.254,190.3,190.29,0.03881466]
[1738963160565,23.87081406,190.32,190.22,2.0507]
[1738963160775,23.33328248,190.29,190.16,1.6566]
[1738963160970,23.83328248,190.28,190.17,2.0004]
[1738963161176,5.256,190.23,190.19,5.257]
[1738963161373,5.256,190.23,190.17,2.0004]
[1738963161676,5.256,190.23,190.19,5.257]
[1738963161878,0.03982241,190.22,190.18,0.04015531]
[1738963162078,0.03982241,190.22,190.18,5.29745531]
[1738963163174,0.03982241,190.22,190.19,5.2568]
[1738963163575,0.03982241,190.22,190.18,0.04015531]
[1738963163971,145.43282184,190.31,190.19,23.83328248]
[1738963164376,145.43282184,190.39,190.22,23.83328248]
[1738963164680,145.43282184,190.39,190.3,5.254]
[1738963164880,145.43282184,190.39,190.25,23.83328248]
[1738963165076,0.03467047,190.36,190.32,0.03821086]
[1738963166477,0.03467047,190.36,190.35,5.2526]
[1738963166878,5.2504,190.43,190.37,5.252]
[1738963167182,145.43282184,190.44,190.33,1.6154]
[1738963167984,145.43282184,190.49,190.34,23.83328248]
[1738963168184,0.03425682,190.4,190.37,0.0372948]
[1738963168687,0.03958815,190.4,190.38,5.2518]
[1738963169386,0.03958815,190.4,190.39,5.2515]
[1738963169587,145.43282184,190.49,190.37,0.03719621]
[1738963169988,5.2496,190.46,190.34,23.83328248]
[1738963170890,145.43282184,190.49,190.38,0.03714524]
[1738963171390,5.2501,190.45,190.39,5.2515]
[1738963171786,5.2501,190.45,190.4,0.03491388]
[1738963172191,5.2496,190.47,190.42,5.2507]
[1738963172596,145.43282184,190.49,190.4,0.03491388]
[1738963172796,145.43282184,190.49,190.4,5.28611388]
[1738963173198,5.2498,190.46,190.41,5.2509]
[1738963173499,145.43282184,190.49,190.4,0.03491388]
[1738963174500,5.2497,190.46,190.41,5.2508]
[1738963175800,145.43282184,190.49,190.4,0.03491388]
[1738963176098,23.83328248,190.47,190.4,0.03491388]
[1738963176299,5.2499,190.45,190.4,0.03491388]
[1738963176501,23.83328248,190.47,190.4,0.03491388]
[1738963177304,5.2507,190.43,190.4,0.03491388]
[1738963179002,5.2509,190.42,190.4,0.03491388]
[1738963179597,5.251,190.41,190.4,0.03491388]
[1738963181194,14.90055133,190.45,190.4,0.03491388]
[1738963181796,5.251,190.42,190.4,0.03491388]
[1738963184400,14.90055133,190.48,190.4,0.03491388]
[1738963185205,145.43282184,190.49,190.4,0.03491388]
[1738963187106,5.2496,190.46,190.42,5.2505]
[1738963188499,145.43282184,190.49,190.4,0.03491388]
[1738963188813,0.1017,190.56,190.42,14.90055133]
[1738963188814,14.90055133,190.54,190.42,14.90055133]
[1738963189101,145.43282184,190.56,190.45,14.90055133]
[1738963189307,14.90055133,190.57,190.46,3.60234192]
[1738963190100,14.90055133,190.54,190.46,0.03564192]
[1738963190300,14.90055133,190.48,190.37,3.4449]
[1738963190500,14.90055133,190.48,190.37,5.1245]
[1738963190700,14.90055133,190.45,190.37,5.1245]
[1738963190900,14.90055133,190.45,190.41,0.03858006]
[1738963191309,5.2506,190.43,190.41,0.03858006]
[1738963191613,14.90055133,190.45,190.41,0.03858006]
[1738963192610,23.84082967,190.44,190.41,0.03858006]
[1738963192909,5.2507,190.42,190.41,0.03858006]
[1738963193511,5.2518,190.39,190.3,1.6557]
[1738963193707,23.84082967,190.41,190.3,3.5725]
[1738963194607,0.03651364,190.37,190.34,0.03861515]
[1738963196404,5.2526,190.35,190.34,0.03861515]
[1738963197708,23.84082967,190.35,190.26,105.5406]
[1738963198013,23.84082967,190.35,190.26,104.0]
[1738963198214,5.2545,190.29,190.26,104.0]
[1738963198806,5.28958423,190.29,190.26,104.03787535]
[1738963200608,0.03508423,190.29,190.26,104.03787535]
[1738963202014,0.03508423,190.29,190.26,0.03787535]
[1738963202216,23.8759139,190.29,190.26,0.03787535]
[1738963202517,23.8759139,190.29,190.17,1.6748]
[1738963202816,23.84082967,190.26,190.14,1.9679]
[1738963203016,23.84082967,190.26,190.16,5.2578]
[1738963203613,0.03820877,190.23,190.19,0.0340533]
[1738963204008,5.2562,190.22,190.19,0.0340533]
[1738963204213,0.03820877,190.23,190.19,0.0340533]
[1738963204416,5.2563,190.22,190.19,0.0340533]
[1738963205512,0.03820877,190.23,190.19,0.0340533]
[1738963205815,23.87903844,190.23,190.19,0.0340533]
[1738963206015,5.2568,190.2,190.19,0.0340533]
[1738963210116,5.2582,190.15,190.11,104.0]
[1738963210321,23.84082967,190.17,190.11,104.0]
[1738963210515,5.2595,190.11,190.07,1.8854]
[1738963211318,5.29400308,190.11,190.07,1.9196067]
[1738963211714,0.03450308,190.11,190.07,1.9196067]
[1738963211921,0.03450308,190.11,190.07,0.0342067]
[1738963212316,5.2601,190.08,190.07,0.0342067]
[1738963212518,23.87533275,190.11,190.07,0.0342067]
[1738963213118,5.26,190.09,190.07,0.0342067]
[1738963213319,23.87533275,190.11,190.07,0.0342067]
[1738963214322,5.2601,190.08,190.07,0.0342067]
[1738963216016,23.84082967,190.08,189.99,5.0349]
[1738963216222,5.2611,190.05,189.99,5.0349]
[1738963216420,23.84082967,190.08,190.02,5.2618]
[1738963216822,5.2609,190.06,190.02,5.2618]
[1738963217323,5.29623788,190.06,190.02,5.30158264]
[1738963217825,0.03533788,190.06,190.02,0.03978264]
[1738963218022,0.03533788,190.06,190.03,5.2613]
[1738963218222,0.03533788,190.06,190.02,0.03978264]
[1738963218522,5.2614,190.04,190.02,0.03978264]
[1738963218712,0.03533788,190.06,190.02,0.03978264]
[1738963218919,5.2615,190.03,190.02,0.03978264]
[1738963219626,5.2612,190.04,190.02,0.03978264]
[1738963219821,0.03533788,190.06,190.02,0.03978264]
[1738963220021,5.261,190.05,190.02,0.03978264]
[1738963220525,0.03533788,190.06,190.02,0.03978264]
[1738963220723,0.03533788,190.06,190.02,5.30148264]
[1738963220923,0.03533788,190.06,190.02,0.03978264]
[1738963221423,5.2615,190.03,190.02,0.03978264]
[1738963223224,23.84082967,190.05,189.95,104.06]
[1738963223427,23.84082967,190.0,189.92,1.711]
[1738963223727,5.2637,189.95,189.92,1.711]
[1738963224521,5.30018516,189.95,189.92,1.74747087]
[1738963225122,5.30018516,189.95,189.92,0.03647087]
[1738963225327,0.03648516,189.95,189.92,0.03647087]
[1738963226025,0.03648516,189.95,189.92,5.30097087]
[1738963226227,0.03648516,189.95,189.92,0.03647087]
[1738963227626,5.2626,190.0,189.93,5.264]
[1738963227830,5.2626,190.0,189.93,1.81]
[1738963228125,5.2627,189.99,189.93,7.0742]
[1738963228332,23.84082967,190.0,189.93,1.81]
[1738963228826,0.03375767,189.98,189.95,0.03838451]
[1738963229526,5.2634,189.96,189.95,0.03838451]
[1738963230629,5.2632,189.97,189.95,0.03838451]
[1738963231127,0.03375767,189.98,189.95,0.03838451]
[1738963232127,5.29685767,189.98,189.95,0.03838451]
[1738963232327,0.03375767,189.98,189.95,0.03838451]
[1738963232525,5.2634,189.96,189.95,0.03838451]
[1738963233333,5.2652,189.9,189.86,1.8146]
[1738963233529,23.84082967,189.93,189.86,1.8146]
[1738963234126,5.2654,189.89,189.86,1.8146]
[1738963234531,5.30099983,189.89,189.86,1.8493606]
[1738963234833,0.03559983,189.89,189.86,1.8493606]
[1738963235031,23.84082967,189.96,189.86,1.8493606]
[1738963235228,145.43282184,189.97,189.86,1.8493606]
[1738963235532,5.2634,189.96,189.91,5.2646]
[1738963235834,145.43282184,189.97,189.87,23.84082967]
[1738963236028,5.2628,189.99,189.87,23.84082967]
[1738963236330,4.654e-05,189.94,189.9,23.87881799]
[1738963236733,55.23109484,190.02,189.93,23.84082967]
[1738963236926,49.86039484,190.02,189.96,23.84082967]
[1738963237121,49.86039484,190.02,189.97,5.2629]
[1738963237326,49.86039484,190.02,189.96,23.84082967]
[1738963237727,49.86039484,190.02,189.97,5.263]
[1738963237930,0.03384811,190.01,189.97,5.30139583]
[1738963238226,49.86039484,190.02,189.97,0.03839583]
[1738963239035,49.86039484,190.02,190.01,5.262]
[1738963239230,49.86039484,190.02,189.97,0.03839583]
[1738963239632,0.0392932,190.03,190.01,5.2618]
[1738963240032,0.0392932,190.03,189.94,1.5732]
[1738963240234,0.0392932,190.03,190.0,0.03573342]
[1738963241833,5.3008932,190.03,190.0,0.03573342]
[1738963242937,5.262,190.01,190.0,0.03573342]
[1738963243138,23.84082967,190.02,189.94,3.1891]
[1738963243340,23.84082967,190.02,189.94,1.6159]
[1738963243538,23.84082967,190.02,189.88,3.3812]
[1738963243736,169.27365151,190.02,189.88,3.3812]
[1738963244037,23.84082967,189.99,189.88,3.3812]
[1738963244427,0.03634962,189.95,189.92,0.03709744]
[1738963244830,5.2643,189.93,189.92,0.03709744]
[1738963245038,0.03634962,189.95,189.92,0.03709744]
[1738963246039,5.2643,189.93,189.92,0.03709744]
[1738963246936,5.2661,189.87,189.82,5.2672]
[1738963247143,23.84082967,189.85,189.73,1.7681]
[1738963247638,5.2671,189.83,189.77,5.2686]
[1738963248239,0.03943052,189.82,189.78,5.30332466]
[1738963248840,5.30673052,189.82,189.78,0.03492466]
[1738963249241,0.03943052,189.82,189.78,0.03492466]
[1738963249436,5.2679,189.8,189.78,0.03492466]
[1738963249639,23.88026019,189.82,189.78,0.03492466]
[1738963250042,5.2681,189.79,189.78,0.03492466]
[1738963250441,5.2678,189.81,189.78,0.03492466]
[1738963251143,0.03943052,189.82,189.78,0.03492466]
[1738963253247,5.2681,189.79,189.78,0.03492466]
[1738963255852,23.84082967,189.79,189.73,1.7681]
[1738963256145,5.269,189.76,189.73,1.7681]
[1738963256351,5.269,189.76,189.7,5.2706]
[1738963256751,23.84082967,189.73,189.56,23.84082967]
[1738963256953,23.84082967,189.73,189.6,1.6176]
[1738963257144,23.84082967,189.73,189.63,0.03778712]
[1738963257145,0.03695051,189.67,189.63,0.03778712]
[1738963259054,0.03695051,189.67,189.64,5.2722]
[1738963259354,0.03695051,189.67,189.63,0.03778712]
[1738963259553,0.03695051,189.67,189.66,5.2717]
[1738963260151,0.03695051,189.67,189.63,0.03778712]
[1738963260555,5.272,189.66,189.63,0.03778712]
[1738963260758,0.03695051,189.67,189.63,0.03778712]
[1738963261152,23.84082967,189.66,189.63,0.03778712]
[1738963261355,5.272,189.65,189.63,0.03778712]
[1738963261561,23.84082967,189.66,189.63,0.03778712]
[1738963262056,23.84082967,189.66,189.51,3.3405]
[1738963262057,5.2723,189.64,189.51,3.3405]
[1738963262259,23.84082967,189.63,189.51,3.3405]
[1738963262853,5.2746,189.56,189.5,7.0753]
[1738963263252,5.2752,189.54,189.51,0.0397416]
[1738963263460,0.03351672,189.55,189.51,0.0397416]
[1738963263654,23.84082967,189.6,189.45,1.8466]
[1738963263857,0.03490882,189.55,189.51,0.036471]
[1738963264760,0.03490882,189.55,189.52,5.2754]
[1738963265059,0.03490882,189.55,189.51,0.036471]
[1738963265453,5.2754,189.53,189.51,0.036471]
[1738963265650,0.03490882,189.55,189.51,0.036471]
[1738963266267,5.2756,189.52,189.51,0.036471]
[1738963267473,5.2765,189.5,189.45,1.8466]
[1738963267665,23.84082967,189.54,189.45,1.8466]
[1738963267873,23.84082967,189.51,189.37,1.5457]
[1738963268063,23.84082967,189.51,189.38,1.734]
[1738963268371,23.84082967,189.51,189.44,5.2779]
[1738963268869,0.03573136,189.46,189.43,0.03340663]
[1738963269864,5.31323136,189.46,189.43,0.03340663]
[1738963270071,0.03573136,189.46,189.43,0.03340663]
[1738963270571,0.03573136,189.46,189.43,5.31130663]
[1738963271374,0.03573136,189.46,189.43,0.03340663]
[1738963271869,5.2777,189.45,189.43,0.03340663]
[1738963272265,0.03573136,189.46,189.43,0.03340663]
[1738963272471,0.03573136,189.46,189.44,5.2779]
[1738963272665,0.03573136,189.46,189.43,0.03340663]
[1738963273473,5.31303136,189.46,189.43,0.03340663]
[1738963273971,5.2779,189.44,189.43,0.03340663]
[1738963274574,5.2776,189.45,189.43,0.03340663]
[1738963274972,0.03573136,189.46,189.43,0.03340663]
[1738963275774,0.03573136,189.46,189.43,5.31150663]
[1738963276473,0.03573136,189.46,189.44,5.2778]
[1738963276676,0.03573136,189.46,189.43,0.03340663]
[1738963277973,0.03573136,189.46,189.43,5.31130663]
[1738963278176,0.03573136,189.46,189.43,0.03340663]
[1738963278872,0.03573136,189.46,189.45,5.2776]
[1738963279571,0.03573136,189.46,189.43,0.03340663]
[1738963279572,0.03573136,189.46,189.27,23.84082967]
[1738963279771,23.84082967,189.4,189.3,1.7185]
[1738963280182,5.2795,189.39,189.3,1.7185]
[1738963280378,23.84082967,189.4,189.3,1.7185]
[1738963280782,0.03749735,189.37,189.34,5.2805]
[1738963281177,0.03749735,189.37,189.35,5.2802]
[1738963281584,0.03749735,189.37,189.33,0.03819711]
[1738963281779,0.03749735,189.37,189.34,5.2806]
[1738963281985,0.03749735,189.37,189.33,0.03819711]
[1738963282185,23.84082967,189.53,189.36,23.84082967]
[1738963282482,23.84082967,189.49,189.37,3.2144]
[1738963282679,23.84082967,189.49,189.3,12.2817]
[1738963282680,23.84082967,189.46,189.3,25.55932967]
[1738963282885,23.84082967,189.43,189.36,5.28]
[1738963283385,5.2794,189.39,189.38,0.0397471]
[1738963284388,0.03782648,189.41,189.38,0.0397471]
[1738963285289,0.03782648,189.41,189.33,5.2808]
[1738963285487,23.84082967,189.43,189.24,23.84082967]
[1738963285682,23.84082967,189.43,189.25,0.97011193]
[1738963285880,23.84082967,189.4,189.24,23.84082967]
[1738963286288,0.03478094,189.34,189.31,5.2813]
[1738963286488,0.03478094,189.34,189.3,0.03686438]
[1738963287186,23.87561061,189.34,189.3,0.03686438]
[1738963288184,5.2813,189.32,189.3,0.03686438]
[1738963288581,23.87561061,189.34,189.18,104.46]
[1738963288785,5.2823,189.29,189.18,104.46]
[1738963288985,5.2823,189.29,189.19,1.5755]
[1738963289187,23.84082967,189.31,189.19,1.5755]
[1738963289890,0.03676299,189.27,189.23,0.03893196]
[1738963290089,0.03676299,189.27,189.01,31.7378]
[1738963290286,23.84082967,189.25,189.09,1.6502]
[1738963290588,23.84082967,189.25,189.1,1.5574]
[1738963291088,23.84082967,189.22,189.1,1.5574]
[1738963291289,23.84082967,189.22,189.14,5.2862]
[1738963291489,0.03905435,189.19,189.16,0.03581682]
[1738963291690,0.03905435,189.19,189.17,5.2854]
[1738963291885,0.03905435,189.19,189.16,0.03581682]
[1738963292393,0.03905435,189.19,189.18,5.2851]
[1738963293583,23.84082967,189.31,189.16,0.03581682]
[1738963293791,4.5,189.34,189.16,0.03581682]
[1738963293792,28.34082967,189.34,189.19,23.84082967]
[1738963293994,2.7149,189.36,189.29,5.282]
[1738963294187,1.5178,189.36,189.22,23.84082967]
[1738963294387,23.84082967,189.4,189.25,23.84082967]
[1738963294889,0.035686,189.34,189.31,0.03857368]
[1738963295091,0.035686,189.34,189.32,5.2812]
[1738963295589,0.035686,189.34,189.31,0.03857368]
[1738963295890,0.035686,189.34,189.33,5.2809]
[1738963296391,1.5178,189.42,189.31,0.03857368]
[1738963296594,23.84082967,189.4,189.31,0.03857368]
[1738963297285,6.7964,189.42,189.31,0.03857368]
[1738963297483,1.5178,189.42,189.31,0.03857368]
[1738963297789,0.03666785,189.38,189.31,0.03857368]
[1738963297993,0.03666785,189.38,189.29,1.6221]
[1738963298390,23.84082967,189.43,189.33,0.03985938]
[1738963298600,23.84082967,189.46,189.31,23.84082967]
[1738963298783,5.2776,189.45,189.38,5.2793]
[1738963298988,23.84082967,189.46,189.31,23.84082967]
[1738963299790,0.03549585,189.4,189.37,0.03454875]
[1738963300092,1.6319,189.47,189.37,0.03454875]
[1738963300289,0.03548014,189.4,189.38,5.2795]
[1738963300488,1.6319,189.47,189.37,0.03454875]
[1738963300695,0.03558051,189.41,189.37,0.03454875]
[1738963301098,0.03558051,189.41,189.4,5.279]
[1738963301600,1.6324,189.54,189.38,1.633]
[1738963301793,6.9077,189.54,189.4,23.84082967]
[1738963302093,203.64624267,189.59,189.49,5.2765]
[1738963302395,205.27864267,189.59,189.4,23.84082967]
[1738963302795,0.0338948,189.55,189.52,0.04018697]
[1738963303095,5.2754,189.53,189.4,23.84082967]
[1738963303297,23.87754072,189.55,189.38,1.633]
[1738963303496,23.84082967,189.49,189.38,1.633]
[1738963303998,23.84082967,189.49,189.42,5.2784]
[1738963304296,23.84082967,189.49,189.38,1.633]
[1738963304596,0.03599096,189.45,189.42,0.03451622]
[1738963304991,0.03599096,189.45,189.42,5.31291622]
[1738963305191,0.03599096,189.45,189.42,0.03451622]
[1738963305590,23.84082967,189.43,189.37,5.2796]
[1738963305792,5.2788,189.41,189.29,1.5249]
[1738963305993,23.84082967,189.43,189.29,1.5249]
[1738963306499,5.2791,189.4,189.29,1.5249]
[1738963306798,0.03528913,189.36,189.33,0.03704873]
[1738963307298,0.03528913,189.36,189.35,5.2804]
[1738963308999,1.6825,189.45,189.33,0.03704873]
[1738963309199,1.6825,189.45,189.31,23.84082967]
[1738963309396,1.6825,189.45,189.32,1.5573]
[1738963309594,25.14872967,189.49,189.32,1.5573]
[1738963310199,0.03810464,189.42,189.39,0.03679012]